fUST/lending_fUST_20250824
["ID","MTS","AMOUNT","RATE_DAILY","PERIOD"]
[381082027,1756012235689,-300.0,0.00026572,2]
[381082028,1756012235698,-300.0,0.00026572,2]
[381082029,1756012235707,-300.0,0.00026572,2]
[381082030,1756012235718,-268.0,0.00026573,2]
[381082031,1756012235727,-1146.39830183,0.00026806,6]
[381082032,1756012235736,-3000.0,0.000284,2]
[381082033,1756012235746,-3000.0,0.0002841,2]
[381082034,1756012235755,-3000.0,0.0002842,2]
[381082035,1756012235767,-3000.0,0.0002843,2]
[381082036,1756012235776,-3000.0,0.0002844,2]
[381082037,1756012235786,-3000.0,0.0002845,2]
[381082038,1756012235795,-374.23525443,0.0002846,2]
[381082039,1756012235807,-2625.76474557,0.0002846,2]
[381082040,1756012235816,-3000.0,0.0002847,2]
[381082041,1756012235825,-3000.0,0.0002848,2]
[381082042,1756012235836,-2962.43318023,0.0002849,2]
[381082046,1756012237985,-37.56681977,0.0002849,2]
[381082048,1756012237995,-3000.0,0.000285,2]
[381082050,1756012238004,-2767.08195993,0.0002851,2]
[381082061,1756012238093,-232.91804007,0.0002851,2]
[381082063,1756012238103,-500.0,0.00028519,2]
[381082065,1756012238112,-500.0,0.00028519,2]
[381082067,1756012238121,-500.0,0.00028519,2]
[381082069,1756012238131,-391.24480931,0.00028519,2]
[381082071,1756012238140,-478.10897078,0.00028519,2]
[381082073,1756012238149,-500.0,0.00028519,2]
[381082075,1756012238158,-500.0,0.00028519,2]
[381082076,1756012238167,-500.0,0.00028519,2]
[381082077,1756012238176,-24.39544609,0.00028519,2]
[381082156,1756012240113,-475.60455391,0.00028519,2]
[381082158,1756012240122,-500.0,0.00028519,2]
[381082160,1756012240132,-482.17703351,0.00028519,2]
[381082264,1756012243154,-17.82296649,0.00028519,2]
[381082265,1756012243164,-14.07740795,0.00028519,2]
[381082266,1756012243191,-485.92259205,0.00028519,2]
[381082267,1756012243200,-3000.0,0.0002852,2]
[381082268,1756012243211,-848.0772254,0.0002853,2]
[381082269,1756012243222,-1917.7574438,0.0002853,2]
[381082292,1756012246259,-234.1653308,0.0002853,2]
[381082293,1756012246272,-1146.39830183,0.00028533,10]
[381082294,1756012246285,-3000.0,0.0002854,2]
[381082295,1756012246299,-566.68224025,0.0002855,2]
[381082296,1756012246315,-1917.2,0.0002855,2]
[381082297,1756012281610,928.8600732,0.000199,2]
[381082298,1756012282461,215.21497033,0.00021627,2]
[381082299,1756012282486,713.64510276,0.00021627,2]
[381082300,1756012283814,-667.32873501,0.00024953,3]
[381082323,1756012454187,874.85412333,0.000199,2]
[381082324,1756012454320,874.8541233,0.00021627,2]
[381082325,1756012473578,612.52,0.0002201,2]
[381082326,1756012537822,-874.8541233,0.00023353,2]
[381082327,1756012620978,787.36871097,0.000199,2]
[381082328,1756012621088,787.36871097,0.00023353,2]
[381082329,1756012621180,787.36871097,0.00021627,2]
[381082330,1756012788457,708.63183996,0.000199,2]
[381082331,1756012788593,708.63183987,0.00021627,2]
[381082332,1756012789199,708.63183987,0.00023353,2]
[381082336,1756012956815,637.76865597,0.000199,2]
[381082337,1756012956954,637.76865588,0.00021627,2]
[381082338,1756012957831,637.76865588,0.00023353,2]
[381082339,1756013007850,4332.67126499,0.000245,3]
[381082341,1756013123445,573.99179035,0.000199,2]
[381082342,1756013123905,573.99179029,0.00023353,2]
[381082343,1756013124160,573.99179029,0.00021627,2]
[381082346,1756013226131,-573.99179029,0.0002508,2]
[381082347,1756013226156,-2000.0,0.000252,7]
[381082348,1756013226179,-157.25,0.00026,2]
[381082349,1756013226203,-281.0,0.00026099,2]
[381082350,1756013226228,-300.0,0.00026099,2]
[381082351,1756013226252,-1000.0,0.000261,2]
[381082352,1756013226276,-1000.0,0.000261,2]
[381082353,1756013226302,-538.16173741,0.000261,2]
[381082354,1756013293193,497.45955172,0.000199,2]
[381082355,1756013293402,497.45955158,0.00023353,2]
[381082356,1756013293645,497.45955158,0.00021627,2]
[381082357,1756013311982,178.11564143,0.00022,2]
[381082382,1756013432498,-5000.0,0.00024953,3]
[381082384,1756013432507,-507.0,0.000252,30]
[381082386,1756013432517,-984.76599587,0.00026,30]
[381082387,1756013432526,-369.0,0.00026099,2]
[381082388,1756013432535,-461.83826259,0.000261,2]
[381082389,1756013432545,-985.59355348,0.000261,2]
[381082395,1756013438249,-199.0,0.000251,30]
[381082396,1756013438259,-14.40644652,0.000261,2]
[381082397,1756013438271,-301.77373254,0.00026806,6]
[381082398,1756013438346,-195.68581904,0.00026806,6]
[381082399,1756013438356,-199.0,0.00028433,10]
[381082400,1756013438365,-455.70417096,0.0002853,2]
[381082403,1756013438386,-1453.4099305,0.0002853,2]
[381082405,1756013438395,-497.45955158,0.00028533,10]
[381082406,1756013438404,-516.11775975,0.0002855,2]
[381082407,1756013438413,-3000.0,0.0002856,2]
[381082408,1756013438422,-3000.0,0.0002857,2]
[381082409,1756013438431,-3000.0,0.0002858,2]
[381082410,1756013438647,-3000.0,0.0002859,2]
[381082411,1756013438657,-3000.0,0.000286,2]
[381082412,1756013438666,-3000.0,0.0002861,2]
[381082413,1756013438676,-3000.0,0.0002862,2]
[381082414,1756013438685,-3000.0,0.0002863,2]
[381082415,1756013438694,-3000.0,0.0002864,2]
[381082416,1756013438703,-3000.0,0.0002865,2]
[381082417,1756013438713,-3000.0,0.0002866,2]
[381082418,1756013438722,-3000.0,0.0002867,2]
[381082419,1756013438731,-3000.0,0.0002868,2]
[381082420,1756013438740,-503.81093719,0.00028689,2]
[381082421,1756013438750,-500.0,0.00028689,2]
[381082422,1756013438759,-192.29872091,0.00028689,2]
[381082423,1756013438769,-500.0,0.00028689,2]
[381082424,1756013438779,-156.76547975,0.00028689,2]
[381082425,1756013438788,-487.91608992,0.00028689,2]
[381082426,1756013438798,-3000.0,0.0002869,2]
[381082427,1756013438807,-3000.0,0.000287,2]
[381082428,1756013438816,-3587.490863,0.0002871,2]
[381082429,1756013438826,-158.688994,0.000294,2]
[381082430,1756013438835,-889.83363526,0.00029415,2]
[381082431,1756013438845,-3077.68296144,0.000295,2]
[381082432,1756013438855,-163.43,0.00029505,10]
[381082433,1756013438864,-265.39933377,0.00029514,2]
[381082434,1756013438873,-202.20021287,0.00029514,10]
[381082435,1756013438882,-1309518.09832825,0.00029515,20]
[381082436,1756013438891,-313.70407185,0.00029515,2]
[381082437,1756013438900,-15241.06026139,0.00029515,2]
[381082438,1756013438909,-3423.33963931,0.00029515,2]
[381082439,1756013438919,-202.273,0.00029528,30]
[381082440,1756013438928,-2592.0,0.00029528,30]
[381082441,1756013438937,-162.0534906,0.00029573,5]
[381082442,1756013438947,-500.0,0.00029573,5]
[381082443,1756013438956,-500.0,0.00029573,5]
[381082444,1756013438965,-500.0,0.00029573,5]
[381082445,1756013438974,-13586.48,0.000296,2]
[381082446,1756013438984,-2000.0,0.0003,45]
[381082447,1756013438993,-647.66914228,0.0003,4]
[381082448,1756013439002,-497.45955158,0.00030259,13]
[381082449,1756013439011,-500.0,0.00031175,5]
[381082450,1756013439021,-161.38519004,0.00031175,5]
[381082451,1756013439030,-500.0,0.00031175,5]
[381082452,1756013439039,-278.89879357,0.00031175,5]
[381082453,1756013439049,-512.13917913,0.00031175,5]
[381082454,1756013439058,-500.0,0.00031175,5]
[381082455,1756013439068,-160.0,0.00031245,2]
[381082456,1756013439077,-160.0,0.00031358,2]
[381082457,1756013439086,-160.0,0.00031358,2]
[381082458,1756013439095,-1000.0,0.00031723,5]
[381082459,1756013439105,-497.45955158,0.00031986,17]
[381082460,1756013439114,-12461.3150597,0.0003199,2]
[381082461,1756013439123,-4489.66535955,0.0003199,2]
[381082462,1756013439133,-32646.33322249,0.00032,2]
[381082466,1756013440489,-374.48010092,0.00029514,2]
[381082467,1756013440499,-115343.34242445,0.00032,2]
[381082468,1756013440508,-824.47,0.00032,7]
[381082469,1756013440517,-208.72,0.00032,7]
[381082470,1756013440527,-1909.11410144,0.00032111,2]
[381082471,1756013440536,-1500.0,0.00032271,5]
[381082472,1756013440546,-500.0,0.00032876,120]
[381082473,1756013440555,-194.59,0.0003288,30]
[381082474,1756013440564,-161.19839244,0.0003288,30]
[381082475,1756013440574,-161.19,0.0003288,30]
[381082476,1756013440583,-497.45955158,0.00033712,21]
[381082477,1756013440592,-500.0,0.00034246,120]
[381082478,1756013440602,-2000.0,0.00035,60]
[381082479,1756013440611,-262.30730692,0.00035,120]
[381082480,1756013440621,-13586.48,0.000353,14]
[381082481,1756013440630,-497.45955158,0.00035439,24]
[381082482,1756013440639,-500.0,0.00035616,120]
[381082483,1756013440649,-1909.11410144,0.00035692,2]
[381082484,1756013440658,-155.78192788,0.00036,30]
[381082485,1756013440669,-500.0,0.00036986,120]
[381082486,1756013440679,-497.45955158,0.00037166,28]
[381082487,1756013440689,-151.0,0.00038109,2]
[381082488,1756013440699,-151.0,0.00038109,2]
[381082489,1756013440710,-151.0,0.00038109,2]
[381082490,1756013440720,-152.256998,0.00038109,2]
[381082491,1756013440730,-208.72,0.000382,7]
[381082492,1756013440739,-500.0,0.00038356,120]
[381082493,1756013440748,-824.47,0.000384,14]
[381082494,1756013440757,-179.71246006,0.00038532,20]
[381082495,1756013440767,-497.45955158,0.00038892,32]
[381082496,1756013440776,-1909.11410144,0.00039273,2]
[381082497,1756013440785,-6152.8859802,0.00039373,2]
[381082498,1756013440796,-1496.55511985,0.0003938,3]
[381082499,1756013440805,-160.0,0.0003939,3]
[381082500,1756013440815,-33230.1734926,0.0003939,3]
[381082501,1756013440824,-11972.4409588,0.0003939,3]
[381082502,1756013440834,-110820.5278217,0.000394,2]
[381082503,1756013440849,-4168.62158193,0.000394,2]
[381082506,1756013443360,-519.47999996,0.000394,2]
[381082507,1756013443418,-289.54641168,0.000394,2]
[381082511,1756013446519,-1000.0,0.000394,2]
[381082512,1756013446531,-429.35548269,0.000394,2]
[381082513,1756013446542,-1641.7569903,0.000394,2]
[381082518,1756013459785,315.05771602,0.000199,2]
[381082519,1756013460076,315.057716,0.00021627,2]
[381082520,1756013460481,315.057716,0.00023353,2]
[381082521,1756013626623,283.5519444,0.000199,2]
[381082522,1756013626735,283.5519444,0.00021627,2]
[381082523,1756013627355,283.5519444,0.00023353,2]
[381082524,1756013793744,734.53935496,0.00029466,35]
[381082525,1756013799012,255.19674996,0.00021627,2]
[381082526,1756013799516,255.19674996,0.00023353,2]
[381082527,1756013799981,255.19674996,0.000199,2]
[381082528,1756013965586,229.67707508,0.000199,2]
[381082529,1756013966040,229.67707496,0.00021627,2]
[381082530,1756013966141,229.67707496,0.00023353,2]
[381082531,1756014132410,206.70936758,0.000199,2]
[381082532,1756014132974,206.70936746,0.00023353,2]
[381082533,1756014133178,206.70936746,0.00021627,2]
[381082534,1756014299112,372.07686142,0.0002249,2]
[381082599,1756014464149,361.1623296,0.0002249,2]
[381082600,1756014629509,361.90636478,0.0002249,2]
[381082603,1756014632661,-361.90636478,0.00024216,2]
[381082604,1756014632671,-182.61459,0.000249,2]
[381082605,1756014632680,-405.69493372,0.00025,2]
[381082606,1756014632690,-180.50853822,0.00025943,4]
[381082607,1756014632702,-181.39782656,0.00025943,4]
[381082608,1756014632711,-417.15472785,0.00027,7]
[381082609,1756014632720,-361.90636478,0.00027669,8]
[381082610,1756014632730,-160.0,0.00028681,2]
[381082611,1756014632740,-64.09108081,0.00029396,11]
[381082612,1756014632751,-297.81528397,0.00029396,11]
[381082614,1756014632760,-361.90636478,0.00031123,15]
[381082615,1756014632770,-199.0,0.00032676,120]
[381082616,1756014632780,-133.93679327,0.00032776,120]
[381082707,1756014638482,-199.0,0.00032676,120]
[381082708,1756014638491,-65.06320673,0.00032776,120]
[381082709,1756014638501,-361.90636478,0.00032849,19]
[381082710,1756014638510,-361.90636498,0.00032849,19]
[381082711,1756014638520,-1000.0,0.00032876,15]
[381082712,1756014638529,-400.0,0.0003356,2]
[381082713,1756014638538,-806.87665548,0.00033561,15]
[381082714,1756014638549,-193.12334452,0.00033561,15]
[381082715,1756014638559,-1000.0,0.00034246,15]
[381082716,1756014638568,-361.90636478,0.00034576,23]
[381082717,1756014638578,-1000.0,0.00034931,15]
[381082718,1756014638587,-220.112,0.00035395,2]
[381082719,1756014638597,-150.39,0.00035395,2]
[381082720,1756014638606,-1000.0,0.00035616,15]
[381082721,1756014638615,-560.0,0.00036037,2]
[381082722,1756014638623,-485.12343312,0.00036301,15]
[381082723,1756014638634,-514.87656688,0.00036301,15]
[381082724,1756014638644,-361.90636478,0.00036302,26]
[381082725,1756014638653,-1000.0,0.00036986,15]
[381082726,1756014638663,-1000.0,0.00037671,15]
[381082727,1756014638672,-361.90636478,0.00038029,30]
[381082728,1756014638681,-1000.0,0.00038356,15]
[381082729,1756014638690,-182.00305596,0.00038532,20]
[381082730,1756014638699,-347.0,0.00038698,5]
[381082731,1756014638708,-1000.0,0.00039041,15]
[381082732,1756014638717,-1401.21430455,0.00039169,2]
[381082733,1756014638726,-1380.46639223,0.000392,120]
[381082734,1756014638737,-7852.53789705,0.000392,120]
[381082735,1756014638748,-954.22622049,0.000392,120]
[381082736,1756014638758,-529.17068775,0.000392,120]
[381082737,1756014638768,-417.15472785,0.000392,120]
[381082738,1756014638777,-188.86895378,0.00039269,3]
[381082739,1756014638788,-426.885,0.00039269,3]
[381082740,1756014638799,-9096.38925743,0.00039269,3]
[381082741,1756014638809,-598.62204794,0.00039269,3]
[381082742,1756014638819,-232.42214577,0.00039269,3]
[381082743,1756014638828,-186.88780424,0.00039273,2]
[381082744,1756014638837,-2109.84493806,0.00039273,10]
[381082745,1756014638846,-1296.35,0.00039278,120]
[381082746,1756014638856,-500.43960614,0.00039278,15]
[381082747,1756014638866,-500.0,0.00039278,2]
[381082748,1756014638875,-261.74159377,0.00039278,7]
[381082749,1756014638884,-500.0,0.00039278,15]
[381082750,1756014638893,-566.68712563,0.00039278,15]
[381082751,1756014638903,-500.0,0.00039278,15]
[381082752,1756014638912,-500.0,0.00039278,2]
[381082753,1756014638921,-500.0,0.00039278,15]
[381082754,1756014638930,-152.61059401,0.00039278,15]
[381082755,1756014638939,-500.0,0.00039278,15]
[381082756,1756014638954,-415.08893497,0.00039278,2]
[381082757,1756014638963,-500.0,0.00039278,15]
[381082758,1756014638972,-500.0,0.00039278,15]
[381082759,1756014638982,-500.0,0.00039278,15]
[381082760,1756014638991,-500.0,0.00039278,15]
[381082761,1756014639000,-230.24,0.00039279,3]
[381082762,1756014639009,-690.72,0.00039279,3]
[381082763,1756014639018,-77697.1456897,0.00039279,3]
[381082764,1756014639027,-4788.97638352,0.00039279,3]
[381082765,1756014639036,-349.58539983,0.00039288,15]
[381082766,1756014639046,-370000.0,0.00039289,2]
[381082767,1756014639055,-500.0,0.00039373,5]
[381082768,1756014639065,-500.0,0.00039373,5]
[381082769,1756014639075,-500.0,0.00039373,5]
[381082770,1756014639085,-500.0,0.00039373,5]
[381082771,1756014639094,-500.0,0.00039373,2]
[381082772,1756014639103,-500.0,0.00039373,5]
[381082773,1756014639112,-444.30390894,0.00039373,5]
[381082774,1756014639121,-199.0,0.00039373,10]
[381082775,1756014639134,-19424.2864224,0.00039379,3]
[381082776,1756014639144,-1197.24409588,0.00039379,3]
[381082777,1756014639153,-151.0,0.00039389,3]
[381082778,1756014639162,-291.24052599,0.00039389,3]
[381082779,1756014639172,-201.93286099,0.00039389,3]
[381082780,1756014639181,-21396.85944216,0.00039389,3]
[381082781,1756014639190,-250.0,0.00039389,3]
[381082782,1756014639199,-151.0,0.00039389,3]
[381082783,1756014639208,-209.40437684,0.00039389,3]
[381082784,1756014639218,-8961.99152649,0.00039389,3]
[381082785,1756014639227,-151.0,0.00039389,3]
[381082786,1756014639238,-151.0,0.00039389,3]
[381082787,1756014639247,-151.0,0.00039389,3]
[381082788,1756014639256,-217.15233878,0.00039389,3]
[381082789,1756014639267,-151.0,0.00039389,3]
[381082790,1756014639276,-151.0,0.00039389,3]
[381082791,1756014639285,-151.0,0.00039389,3]
[381082792,1756014639294,-225.18697532,0.00039389,3]
[381082793,1756014639304,-151.0,0.00039389,3]
[381082794,1756014639313,-349.59376784,0.00039389,3]
[381082795,1756014639322,-151.0,0.00039389,3]
[381082796,1756014639331,-151.0,0.00039389,3]
[381082797,1756014639343,-151.0,0.00039389,3]
[381082798,1756014639352,-151.0,0.00039389,3]
[381082799,1756014639361,-300.0,0.00039389,3]
[381082800,1756014639370,-151.0,0.00039389,3]
[381082801,1756014639381,-151.0,0.00039389,3]
[381082802,1756014639391,-300.0,0.00039389,3]
[381082803,1756014639400,-300.0,0.00039389,3]
[381082804,1756014639410,-151.0,0.00039389,3]
[381082805,1756014639419,-151.0,0.00039389,3]
[381082806,1756014639428,-2524.82941417,0.00039389,3]
[381082807,1756014639437,-151.0,0.00039389,3]
[381082808,1756014639448,-300.0,0.00039389,3]
[381082809,1756014639456,-151.0,0.00039389,3]
[381082810,1756014639466,-2618.2481025,0.00039389,3]
[381082811,1756014639475,-151.0,0.00039389,3]
[381082812,1756014639484,-300.0,0.00039389,3]
[381082813,1756014639493,-151.0,0.00039389,3]
[381082814,1756014639502,-2715.12328229,0.00039389,3]
[381082815,1756014639511,-151.0,0.00039389,3]
[381082816,1756014639520,-151.0,0.00039389,3]
[381082817,1756014639529,-2815.58284374,0.00039389,3]
[381082818,1756014639539,-300.0,0.00039389,3]
[381082819,1756014639548,-151.0,0.00039389,3]
[381082820,1756014639558,-151.0,0.00039389,3]
[381082821,1756014639568,-2919.75940895,0.00039389,3]
[381082822,1756014639577,-300.0,0.00039389,3]
[381082823,1756014639586,-300.0,0.00039389,3]
[381082824,1756014639596,-3027.79050709,0.00039389,3]
[381082825,1756014639606,-300.0,0.00039389,3]
[381082826,1756014639615,-3139.81875585,0.00039389,3]
[381082827,1756014639628,-500.0,0.00039389,3]
[381082828,1756014639639,-300.0,0.00039389,3]
[381082829,1756014639648,-3255.99204981,0.00039389,3]
[381082830,1756014639657,-300.0,0.00039389,3]
[381082831,1756014639667,-3376.46375566,0.00039389,3]
[381082832,1756014639677,-324.49593174,0.00039389,3]
[381082833,1756014639687,-3501.39291462,0.00039389,3]
[381082834,1756014639697,-300.0,0.00039389,3]
[381082835,1756014639706,-300.0,0.00039389,3]
[381082836,1756014639715,-2670.64462513,0.00039389,3]
[381082837,1756014639724,-323.21924273,0.00039389,3]
[381082838,1756014639733,-659.57,0.000394,14]
[381082839,1756014639743,-166.98,0.000394,7]
[381082840,1756014639752,-186.88780421,0.0003943,2]
[381082841,1756014639761,-186.88780421,0.00039587,2]
[381082842,1756014639771,-1000.0,0.00039726,15]
[381082843,1756014639780,-447.6054018,0.00039726,30]
[381082844,1756014639789,-186.88780421,0.00039743,2]
[381082845,1756014639799,-361.90636478,0.00039755,34]
[381082846,1756014639809,-401.39721443,0.00039877,120]
[381082847,1756014639818,-1000.0,0.0003989,2]
[381082848,1756014639827,-1000.0,0.0003989,2]
[381082849,1756014639836,-1000.0,0.0003989,2]
[381082850,1756014639846,-921.41848899,0.0003989,2]
[381082851,1756014639855,-199.0,0.000399,120]
[381082852,1756014639864,-186.88780421,0.000399,2]
[381082853,1756014639874,-502.13867085,0.00039973,2]
[381082854,1756014639886,-502.06378731,0.00039973,5]
[381082855,1756014639899,-500.0,0.00039973,5]
[381082856,1756014639909,-500.52290068,0.00039973,5]
[381082857,1756014639918,-500.0,0.00039973,5]
[381082858,1756014639928,-500.0,0.00039973,5]
[381082859,1756014639938,-500.0,0.00039973,5]
[381082860,1756014639947,-500.0,0.00039973,5]
[381082861,1756014639956,-500.0,0.00039973,5]
[381082862,1756014639965,-500.0,0.00039973,5]
[381082863,1756014639975,-19424.2864224,0.0003998,3]
[381082864,1756014639984,-1197.24409588,0.0003998,3]
[381082865,1756014639994,-500.0,0.00039989,120]
[381082866,1756014640003,-500.0,0.00039989,120]
[381082867,1756014640014,-500.0,0.00039989,120]
[381082868,1756014640023,-500.0,0.00039989,120]
[381082869,1756014640038,-500.0,0.00039989,120]
[381082870,1756014640047,-500.0,0.00039989,120]
[381082871,1756014640057,-500.0,0.00039989,120]
[381082872,1756014640067,-500.0,0.00039989,120]
[381082873,1756014640076,-500.0,0.00039989,120]
[381082874,1756014640086,-500.0,0.00039989,120]
[381082875,1756014640095,-500.0,0.00039989,120]
[381082876,1756014640104,-500.0,0.00039989,120]
[381082877,1756014640114,-608.59093476,0.00039989,120]
[381082878,1756014640123,-67985.0024785,0.0003999,3]
[381082879,1756014640133,-4190.35433558,0.0003999,3]
[381082880,1756014640144,-2000.0,0.0004,90]
[381082881,1756014640154,-8742.71,0.0004,60]
[381082882,1756014640164,-500.0,0.0004,2]
[381082883,1756014640174,-670143.54997312,0.0004,30]
[381082884,1756014640239,-1331.42162556,0.0004,30]
[381082885,1756014640251,-3565.30238062,0.0004,30]
[381082887,1756014640263,-1380.14854537,0.0004,30]
[381082889,1756014640274,-980.78115233,0.0004,30]
[381082890,1756014640754,-199.0,0.00032676,120]
[381082891,1756014640764,-60.0,0.00033609,2]
[381082892,1756014640775,-100.0,0.00033609,2]
[381082893,1756014640784,-403.01188397,0.0004,30]
[381082894,1756014640795,-267.183561,0.0004,30]
[381082895,1756014640806,-258.22,0.0004,30]
[381082896,1756014640817,-302.38100002,0.0004,30]
[381082897,1756014640828,-148956.30867549,0.0004,30]
[381082898,1756014640850,-607.8502835,0.0004,30]
[381082906,1756014643726,-2843.8,0.0004,30]
[381082907,1756014643785,-33321.21799802,0.0004,30]
[381082908,1756014643795,-150.0214196,0.0004,120]
[381082909,1756014643804,-346.22499843,0.0004,120]
[381082910,1756014643813,-10869.18,0.0004,14]
[381082911,1756014643823,-151.0,0.0004,30]
[381082913,1756014643832,-151.0,0.0004,30]
[381082914,1756014643841,-151.0,0.0004,30]
[381082915,1756014643850,-151.0,0.0004,30]
[381082916,1756014643859,-151.0,0.0004,30]
[381082917,1756014643868,-151.0,0.0004,30]
[381082918,1756014643878,-151.0,0.0004,30]
[381082919,1756014643888,-151.0,0.0004,30]
[381082920,1756014643896,-151.0,0.0004,30]
[381082921,1756014643906,-151.0,0.0004,30]
[381082922,1756014643915,-151.0,0.0004,30]
[381082923,1756014643924,-151.0,0.0004,30]
[381082924,1756014643934,-151.0,0.0004,30]
[381082925,1756014643943,-151.0,0.0004,30]
[381082926,1756014643952,-151.0,0.0004,30]
[381082927,1756014643961,-151.0,0.0004,30]
[381082928,1756014643970,-151.0,0.0004,30]
[381082929,1756014643979,-151.0,0.0004,30]
[381082930,1756014643988,-151.0,0.0004,30]
[381082931,1756014643997,-151.0,0.0004,30]
[381082932,1756014644006,-151.0,0.0004,30]
[381082933,1756014644015,-151.0,0.0004,30]
[381082934,1756014644024,-193.28,0.0004,30]
[381082935,1756014644034,-193.28,0.0004,30]
[381082936,1756014644043,-193.28,0.0004,30]
[381082937,1756014644052,-188.891367,0.0004,30]
[381082938,1756014644062,-193.28,0.0004,30]
[381082939,1756014644071,-188.891367,0.0004,30]
[381082940,1756014644080,-188.891367,0.0004,30]
[381082941,1756014644089,-188.891367,0.0004,30]
[381082942,1756014644098,-151.0,0.0004,30]
[381082943,1756014644107,-151.0,0.0004,30]
[381082944,1756014644116,-283.69851,0.0004,30]
[381082945,1756014644126,-213.707195,0.0004,30]
[381082946,1756014644135,-213.707195,0.0004,30]
[381082947,1756014644144,-213.707195,0.0004,30]
[381082948,1756014644153,-213.707195,0.0004,30]
[381082949,1756014644162,-362.649958,0.0004,30]
[381082950,1756014644172,-362.649958,0.0004,30]
[381082951,1756014644181,-362.649958,0.0004,30]
[381082952,1756014644190,-362.649958,0.0004,30]
[381082953,1756014644199,-203.972041,0.0004,30]
[381082954,1756014644208,-203.972041,0.0004,30]
[381082955,1756014644217,-151.0,0.0004,30]
[381082956,1756014644227,-203.972041,0.0004,30]
[381082957,1756014644236,-151.0,0.0004,30]
[381082958,1756014644246,-203.972041,0.0004,30]
[381082959,1756014644255,-151.0,0.0004,30]
[381082960,1756014644264,-152.150983,0.0004,30]
[381082961,1756014644274,-151.0,0.0004,30]
[381082962,1756014644283,-151.0,0.0004,30]
[381082963,1756014644293,-151.0,0.0004,30]
[381082964,1756014644303,-151.0,0.0004,30]
[381082965,1756014644312,-151.0,0.0004,30]
[381082966,1756014644322,-151.0,0.0004,30]
[381082967,1756014644331,-151.0,0.0004,30]
[381082968,1756014644340,-151.0,0.0004,30]
[381082969,1756014644351,-151.0,0.0004,30]
[381082970,1756014644362,-154.555483,0.0004,30]
[381082971,1756014644372,-151.0,0.0004,30]
[381082972,1756014644381,-286.834604,0.0004,30]
[381082973,1756014644390,-151.474463,0.0004,30]
[381082974,1756014644400,-151.0,0.0004,30]
[381082975,1756014644409,-151.0,0.0004,30]
[381082976,1756014644418,-151.0,0.0004,30]
[381082977,1756014644428,-174.63345,0.0004,30]
[381082978,1756014644436,-270.593659,0.0004,30]
[381082979,1756014644446,-270.593659,0.0004,30]
[381082980,1756014644455,-151.0,0.0004,30]
[381082981,1756014644465,-270.593659,0.0004,30]
[381082982,1756014644474,-270.593659,0.0004,30]
[381082983,1756014644483,-177.451754,0.0004,30]
[381082984,1756014644492,-177.451754,0.0004,30]
[381082985,1756014644501,-177.451754,0.0004,30]
[381082986,1756014644511,-177.451754,0.0004,30]
[381082987,1756014644521,-151.0,0.0004,30]
[381082988,1756014644530,-151.0,0.0004,30]
[381082989,1756014644539,-151.0,0.0004,30]
[381082990,1756014644548,-151.0,0.0004,30]
[381082991,1756014644557,-151.0,0.0004,30]
[381082992,1756014644567,-151.0,0.0004,30]
[381082993,1756014644576,-360.339661,0.0004,30]
[381082994,1756014644585,-360.339661,0.0004,30]